Workbook

Sheet Производственная программа ВК
B1: ПРОИЗВОДСТВЕННАЯ ПРОГРАММА 2022-2028
AM2: - Начало СМР
L3: ● | M3: - Внутреннее согласование архитектурно-градостроительной концепции застройки в АБД проведено; | X3: ▪ | Y3: - разрешения на строительство получено; | AM3: - СМР
L4: ● | M4: -В УАиГ получено согласование архитектурной концепции с эскизом застройки ; | X4: ▪ | Y4: - старт продаж | AM4: - Производство панелей
L5: ● | M5: - Эскизный проект (1 этап) согласован; | X5: ▪ | Y5: - получен ЗОС; | AM5: - Ввод объекта в эксплуатацию
L6: ● | M6: - Утверждение отклонений от предельных параметров разрешенного строительства; | X6: ▪ | Y6: - зарегистрирована превая квартира на покупателя/раскрыты эскроу счета; | AL6: ДДУ | AM6: - Передача ключей по ДДУ
A7: № п/п | B7: № п/п | C7: Код по 1C | D7: Наименование объектов | E7: Общая площадь здания, м2 | F7: Срок СМР (мес.) | G7: Проектировщик | I7: Ген. Подрядчик | J7: Срок РНС до | K7: Передача ключей по ДДУ (обяз-ва) | L7: 2021 | X7: КПД 2021 | Y7: ВВОД 2021 | Z7: ЗАДЕЛ 2021 | AA7: Проектирование 2021 | AB7: Наличие проекта | AC7: Общий объем по проекту | AD7: Ед.изм. | AE7: 2023
F8: РНС - Ввод | G8: АГК-ЭП | H8: ЭП-Эксперт | L8: янв | M8: фев | N8: мар | O8: апр | P8: май | Q8: июн | R8: июл | S8: авг | T8: сен | U8: окт | V8: ноя | W8: дек | X8: м3 | Y8: м2 | Z8: м2 | AA8: м2 | AE8: янв | AF8: фев | AG8: мар | AH8: апр | AI8: май | AJ8: июн | AK8: июл | AL8: авг | AM8: сен | AN8: окт | AO8: ноя | AP8: дек
A9: 1 | B9: 1 | C9: 2 | D9: 2 | F9: 112 | I9: 33 | J9: 34 | K9: 35 | L9: 36 | M9: 37 | N9: 38 | O9: 39 | P9: 40 | Q9: 41 | R9: 42 | S9: 43 | T9: 44 | U9: 45 | V9: 46 | W9: 47 | X9: 48 | Y9: 49 | Z9: 50 | AA9: 51 | AE9: 68 | AF9: 69 | AG9: 70 | AH9: 71 | AI9: 72 | AJ9: 73 | AK9: 74 | AL9: 75 | AM9: 76 | AN9: 77 | AO9: 78 | AP9: 79
A10: 10 | B10: 1.3 | C10: СГ00.09.0.00.0 | D10: Жилой комплекс "Солнечный город" ПК-9 | E10: =E11 -> 0 | L10: =SUM(L11:L11) -> 0 | M10: 0 | N10: 0 | O10: 0 | P10: 0 | Q10: 0 | R10: 0 | S10: 0 | T10: 0 | U10: 0 | V10: 0 | W10: 0 | X10: 0 | Y10: 0 | Z10: 0 | AA10: 0 | AE10: =SUM(AE11:AE11) -> 0 | AF10: 0 | AG10: 0 | AH10: 0 | AI10: 0 | AJ10: 0 | AK10: 0 | AL10: 0 | AM10: 0 | AN10: 0 | AO10: 0 | AP10: 0
A11: 11 | B11: 1.3.1 | C11: СГ00.09.2.00.0 | D11: Жилой комплекс "Солнечный город" ПК-9 Адм здание 17-3 | F11: =(#REF!-#REF!)/30 ->  | X11: =SUM(L11:W11) -> 0
A12: 12 | C12: СД00.00.0.00.0 | D12: ЖК "Светлая долина" | E12: =SUM(,#REF!,#REF!,E13,#REF!,E42) -> 
A13: 30 | C13: СД00.03.0.00.0 | D13: ЖК "Светлая Долина" ПК-3 | E13: =SUM(E14:E35) -> 65,472 | K13: =MAX(K14:K35) -> 2025-06-30 | L13: =SUM(L14,L21,L28,L35) -> 0 | M13: 0 | N13: 0 | O13: 0 | P13: 0 | Q13: 0 | R13: 0 | S13: 0 | T13: 0 | U13: 0 | V13: 0 | W13: 0 | X13: 0 | AE13: =SUM(AE14,AE21,AE28,AE35) -> 0 | AF13: 0 | AG13: 0 | AH13: 0 | AI13: 0 | AJ13: 0 | AK13: 0 | AL13: 0 | AM13: 0 | AN13: 0 | AO13: 0 | AP13: 0
A14: 31 | C14: СД00.03.1.03.1 | D14: ЖК "Светлая Долина" ПК-3 ж/д 3-1 | E14: 30,509 | F14: =(#REF!-#REF!)/30 ->  | G14: АБ-1 | H14: АБ-1 | I14: Не определен | K14: 2025-06-30 | O14: ● | R14: ● | V14: ● | X14: =SUM(L14:W14) -> 0 | Y14: =IF(YEAR(#REF!)=L$7,#REF!,0) ->  | Z14: =IF(AND(YEAR(#REF!)<=L$7,YEAR(#REF!)>L$7),#REF!,0) ->  | AA14: =#REF! ->  | AB14: есть
D15: Трубы полипропиленовые | AC15: =2942.8+4190 -> 7132.8 | AD15: м
D16: Трубы полиэтиленовые | AC16: 456 | AD16: м
D17: Трубы чугунные SML | AC17: 0 | AD17: м
D18: Запорная арматура чугун | AC18: 63 | AD18: шт
D19: Запорная арматура латунь | AC19: =558+701 -> 1259 | AD19: шт
D20: Противопожарное оборудование | AC20: 2 | AD20: компл
A21: 32 | C21: СД00.03.1.03.2 | D21: ЖК "Светлая Долина" ПК-3 ж/д 3-2 | E21: 7,460 | F21: =(#REF!-#REF!)/30 ->  | G21: АБ-1 | H21: АБ-1 | I21: АБСт | K21: 2025-06-30 | O21: ● | R21: ● | V21: ● | X21: =SUM(L21:W21) -> 0 | Y21: =IF(YEAR(#REF!)=L$7,#REF!,0) ->  | Z21: =IF(AND(YEAR(#REF!)<=L$7,YEAR(#REF!)>L$7),#REF!,0) ->  | AA21: =#REF! ->  | AB21: есть, без спец | AC21: Примерный объем
D22: Трубы полипропиленовые | AC22: =241+649+52+324+1000+130 -> 2396 | AD22: м
D23: Трубы полиэтиленовые | AC23: 110 | AD23: м
D24: Трубы чугунные SML | AC24: 0 | AD24: м
D25: Запорная арматура чугун | AC25: 24 | AD25: шт
D26: Запорная арматура латунь | AC26: =177+12+236+370 -> 795 | AD26: шт
D27: Противопожарное оборудование | AC27: 1 | AD27: компл
A28: 34 | C28: СД00.03.1.03.3 | D28: ЖК "Светлая Долина" ПК-3 ж/д 3-3 | E28: 17,140 | F28: =(#REF!-#REF!)/30 ->  | G28: АБ-1 | H28: АБ-1 | I28: АБСт | K28: 2025-06-30 | O28: ● | R28: ● | V28: ● | X28: =SUM(L28:W28) -> 0 | Y28: =IF(YEAR(#REF!)=L$7,#REF!,0) ->  | Z28: =IF(AND(YEAR(#REF!)<=L$7,YEAR(#REF!)>L$7),#REF!,0) ->  | AA28: =#REF! ->  | AB28: есть, без спец | AC28: Примерный объем
D29: Трубы полипропиленовые | AC29: =195+1086+140+44+844+1664+171 -> 4144 | AD29: м
D30: Трубы полиэтиленовые | AC30: 207 | AD30: м
D31: Трубы чугунные SML | AC31: 0 | AD31: м
D32: Запорная арматура чугун | AC32: 32 | AD32: шт
D33: Запорная арматура латунь | AC33: =302+12+506+450 -> 1270 | AD33: шт
D34: Противопожарное оборудование | AC34: 1 | AD34: компл
A35: 36 | C35: СД00.03.1.03.4 | D35: ЖК "Светлая Долина" ПК-3 ж/д 3-4 | E35: 10,363 | F35: =(#REF!-#REF!)/30 ->  | G35: АБ-1 | H35: АБ-1 | I35: АБСт | K35: 2025-06-30 | O35: ● | R35: ● | V35: ● | X35: =SUM(L35:W35) -> 0 | Y35: =IF(YEAR(#REF!)=L$7,#REF!,0) ->  | Z35: =IF(AND(YEAR(#REF!)<=L$7,YEAR(#REF!)>L$7),#REF!,0) ->  | AA35: =#REF! ->  | AB35: есть, без спец | AC35: Примерный объем
D36: Трубы полипропиленовые | AC36: =241+649+52+324+1000+130 -> 2396 | AD36: м
D37: Трубы полиэтиленовые | AC37: 110 | AD37: м
D38: Трубы чугунные SML | AC38: 0 | AD38: м
D39: Запорная арматура чугун | AC39: 24 | AD39: шт
D40: Запорная арматура латунь | AC40: =177+12+236+370 -> 795 | AD40: шт
D41: Противопожарное оборудование | AC41: 1 | AD41: компл
A42: 40 | C42: СД00.03.0.00.0 | D42: ЖК "Светлая Долина" ПК-5 | E42: =E43 -> 16,357
A43: 41 | C43: СД00.05.3.05.1 | D43: ЖК "Светлая долина" ПК-5 паркинг 5-1 на 506 м/м | E43: 16,357 | F43: =(#REF!-#REF!)/30 ->  | G43: АБ-1 | H43: ООО "СтандартПроект" | I43: АБСт | K43: 2023-09-30 | W43: ▪ | X43: =SUM(L43:W43) -> 0 | Y43: =IF(YEAR(#REF!)=L$7,#REF!,0) ->  | Z43: =IF(AND(YEAR(#REF!)<=L$7,YEAR(#REF!)>L$7),#REF!,0) ->  | AA43: =#REF! ->  | AB43: Есть
D44: Трубы полипропиленовые | AC44: =86+82+79+136+28 -> 411 | AD44: м
D45: Трубы полиэтиленовые | AC45: 0 | AD45: м
D46: Трубы чугунные SML | AC46: 370 | AD46: м
D47: Запорная арматура чугун | AC47: 23 | AD47: шт
D48: Запорная арматура латунь | AC48: 18 | AD48: шт
D49: Противопожарное оборудование | AC49: 1 | AD49: компл
A50: 149 | C50: АВ00.00.0.00.0 | D50: ЖК на Айвазовского | E50: =SUM(E51:E51) -> 0 | K50: =MAX(K51) -> 00:00:00 | L50: =SUM(L51:L51) -> 0 | M50: 0 | N50: 0 | O50: 0 | P50: 0 | Q50: 0 | R50: 0 | S50: 0 | T50: 0 | U50: 0 | V50: 0 | W50: 0 | X50: 0 | Y50: 0 | Z50: 0 | AA50: 0 | AB50: есть, только 1 очередь
A51: 150 | C51: АВ00.01.0.00.0 | D51: Трубы полипропиленовые | AC51: =1748+245 -> 1993 | AD51: м
D52: Трубы полиэтиленовые | AD52: м
D53: Трубы чугунные SML | AC53: =460+290 -> 750 | AD53: м
D54: Запорная арматура чугун | AC54: 12 | AD54: шт
D55: Запорная арматура латунь | AC55: 788 | AD55: шт
D56: Противопожарное оборудование | AC56: 1 | AD56: компл
A57: 261 | C57: ГЖФ0.00.0.00.0 | D57: Объекты ГЖФ | E57: =#REF! ->  | L57: =#REF! ->  | M57: =#REF! ->  | N57: =#REF! ->  | O57: =#REF! ->  | P57: =#REF! ->  | Q57: =#REF! ->  | R57: =#REF! ->  | S57: =#REF! ->  | T57: =#REF! ->  | U57: =#REF! ->  | V57: =#REF! ->  | W57: =#REF! ->  | X57: =#REF! ->  | Y57: =#REF! ->  | Z57: =#REF! ->  | AA57: =#REF! -> 
A58: 266 | C58: СК00.01.0.00.0 | D58: ЖК "Салават Купере" Квартал №1 | E58: =SUM(E59:E93) -> 0 | L58: =SUM(L59:L93) -> 0 | M58: =SUM(M59:M93) -> 0 | N58: =SUM(N59:N93) -> 0 | O58: =SUM(O59:O93) -> 0 | P58: =SUM(P59:P93) -> 0 | Q58: =SUM(Q59:Q93) -> 0 | R58: =SUM(R59:R93) -> 0 | S58: =SUM(S59:S93) -> 0 | T58: =SUM(T59:T93) -> 0 | U58: =SUM(U59:U93) -> 0 | V58: =SUM(V59:V93) -> 0 | W58: =SUM(W59:W93) -> 0 | X58: =SUM(X59:X93) -> 0 | Y58: =SUM(Y59:Y93) ->  | Z58: =SUM(Z59:Z93) ->  | AA58: =SUM(AA59:AA93) -> 0
A59: 279 | C59: СК00.01.1.05.1 | D59: ЖК "Салават Купере" Квартал №1 ж/д 5-1 | F59: =(#REF!-#REF!)/30 ->  | G59: АБ-1 | H59: АБ-1 | I59: АБСт | K59: - | X59: =SUM(L59:W59) -> 0 | Y59: =IF(YEAR(#REF!)=L$7,#REF!,0) ->  | Z59: =IF(AND(YEAR(#REF!)<=L$7,YEAR(#REF!)>L$7),#REF!,0) ->  | AB59: нет, по 17-3 СД
D60: Трубы полипропиленовые | AC60: =270+370+43+11+420+562+31 -> 1707 | AD60: м
D61: Трубы полиэтиленовые | AC61: 126 | AD61: м
D62: Трубы чугунные SML | AC62: 0 | AD62: м
D63: Запорная арматура чугун | AC63: 8 | AD63: шт
D64: Запорная арматура латунь | AC64: =138+2+85+10 -> 235 | AD64: шт
D65: Противопожарное оборудование | AC65: 0 | AD65: компл
A66: 279 | C66: СК00.01.1.05.2 | D66: ЖК "Салават Купере" Квартал №1 ж/д 5-2 | F66: =(#REF!-#REF!)/30 ->  | G66: АБ-1 | H66: АБ-1 | I66: АБСт | K66: - | X66: 0 | Y66: =IF(YEAR(#REF!)=L$7,#REF!,0) ->  | Z66: =IF(AND(YEAR(#REF!)<=L$7,YEAR(#REF!)>L$7),#REF!,0) ->  | AB66: нет, по 17-3 СД
D67: Трубы полипропиленовые | AC67: =270+370+43+11+420+562+31 -> 1707 | AD67: м
D68: Трубы полиэтиленовые | AC68: 126 | AD68: м
D69: Трубы чугунные SML | AC69: 0 | AD69: м
D70: Запорная арматура чугун | AC70: 8 | AD70: шт
D71: Запорная арматура латунь | AC71: =138+2+85+10 -> 235 | AD71: шт
D72: Противопожарное оборудование | AC72: 0 | AD72: компл
A73: 267 | C73: СК00.01.1.03.1 | D73: ЖК "Салават Купере" Квартал №1 ж/д 3-1 | F73: =(#REF!-#REF!)/30 ->  | G73: АБ-1 | H73: АБ-1 | I73: АБСт | K73: - | X73: 0 | Y73: =IF(YEAR(#REF!)=L$7,#REF!,0) ->  | Z73: =IF(AND(YEAR(#REF!)<=L$7,YEAR(#REF!)>L$7),#REF!,0) ->  | AB73: нет
D74: Трубы полипропиленовые | AD74: м
D75: Трубы полиэтиленовые | AD75: м
D76: Трубы чугунные SML | AD76: м
D77: Запорная арматура чугун | AD77: шт
D78: Запорная арматура латунь | AD78: шт
D79: Противопожарное оборудование | AD79: компл
A80: 268 | C80: СК00.01.1.03.2 | D80: ЖК "Салават Купере" Квартал №1 ж/д 3-2 | F80: =(#REF!-#REF!)/30 ->  | G80: АБ-1 | H80: АБ-1 | I80: АБСт | K80: - | X80: 0 | Y80: =IF(YEAR(#REF!)=L$7,#REF!,0) ->  | Z80: =IF(AND(YEAR(#REF!)<=L$7,YEAR(#REF!)>L$7),#REF!,0) ->  | AB80: нет
D81: Трубы полипропиленовые | AD81: м
D82: Трубы полиэтиленовые | AD82: м
D83: Трубы чугунные SML | AD83: м
D84: Запорная арматура чугун | AD84: шт
D85: Запорная арматура латунь | AD85: шт
D86: Противопожарное оборудование | AD86: компл
A87: 269 | C87: СК00.01.1.03.3 | D87: ЖК "Салават Купере" Квартал №1 ж/д 3-3 | F87: =(#REF!-#REF!)/30 ->  | G87: АБ-1 | H87: АБ-1 | I87: АБСт | K87: - | X87: 0 | Y87: =IF(YEAR(#REF!)=L$7,#REF!,0) ->  | Z87: =IF(AND(YEAR(#REF!)<=L$7,YEAR(#REF!)>L$7),#REF!,0) ->  | AB87: нет
D88: Трубы полипропиленовые | AD88: м
D89: Трубы полиэтиленовые | AD89: м
D90: Трубы чугунные SML | AD90: м
D91: Запорная арматура чугун | AD91: шт
D92: Запорная арматура латунь | AD92: шт
D93: Противопожарное оборудование | AD93: компл
D94: максимальная загрузка завода панелями | L94: =5745.73301587302/0.786 -> 7310 | M94: =5745.73301587302/0.786 -> 7310 | N94: 7310 | O94: 7310 | P94: 7310 | Q94: 7310 | R94: 7310 | S94: 7310 | T94: 7310 | U94: 7310 | V94: 7310 | W94: 7310 | AE94: 7217 | AF94: 7217 | AG94: 7218 | AH94: 7218 | AI94: 7218 | AJ94: 7218 | AK94: 7218 | AL94: 7218 | AM94: 7218 | AN94: 7218 | AO94: 7218 | AP94: 7218
D95: Разница между итогопанели м3 и макс загрузкой завода панелями | L95: =L94-#REF! ->  | M95: =M94-#REF! ->  | N95: =N94-#REF! ->  | O95: =O94-#REF! ->  | P95: =P94-#REF! ->  | Q95: =Q94-#REF! ->  | R95: =R94-#REF! ->  | S95: =S94-#REF! ->  | T95: =T94-#REF! ->  | U95: =U94-#REF! ->  | V95: =V94-#REF! ->  | W95: =W94-#REF! ->  | X95: =X94-#REF! ->  | Y95: =Y94-#REF! ->  | Z95: =Z94-#REF! ->  | AA95: =AA94-#REF! ->  | AE95: =AE94-#REF! ->  | AF95: =AF94-#REF! ->  | AG95: =AG94-#REF! ->  | AH95: =AH94-#REF! ->  | AI95: =AI94-#REF! ->  | AJ95: =AJ94-#REF! ->  | AK95: =AK94-#REF! ->  | AL95: =AL94-#REF! ->  | AM95: =AM94-#REF! ->  | AN95: =AN94-#REF! ->  | AO95: =AO94-#REF! ->  | AP95: =AP94-#REF! -> 
B96: * Коммерческие здания: Адм здание 17-3 ПК-9 СГ, Торгово-офисное здание ПК-5 "Мой Ритм", Бизнес-центр ПК-1 "Мой Ритм", Бизнес-центр М-3 "Седьмое Небо", Технопарк М-4 "Седьмое Небо", Административное здание с МУПг ул.Рахматуллина, Здание по ул.Сыртлановой 2, Административно-офисное здание по ул.Шмидта 35Б
B98: Ввод квартир 2020-2028
B99: Итого АБД
B100: Итого ГЖФ
B101: Всего квартир АБД+ГЖФ | F101: =F99+F100 -> 0
